bitfinex-derivatives/quotes_BNBF0:USTF0_20251010
["timestamp","ask_amount","ask_price","bid_price","bid_amount"]
[1760115859664,0.14139645,1230.1,1228.2,0.52904268]
[1760115859860,0.14139645,1230.1,1228.3,0.52904268]
[1760115860065,0.14139645,1230.1,1228.4,0.52904268]
[1760115860265,0.14139645,1230.1,1228.5,0.52904268]
[1760115860462,0.14139645,1230.1,1228.6,0.52904268]
[1760115860765,0.14139645,1230.1,1228.2,0.59355561]
[1760115860959,0.14139645,1230.1,1228.3,0.5289309]
[1760115861165,0.14139645,1230.1,1228.4,0.5289309]
[1760115861364,0.14139645,1230.1,1228.5,0.5289309]
[1760115861562,0.14139645,1230.1,1228.1,0.59355561]
[1760115861761,0.14139645,1230.1,1228.2,0.52913398]
[1760115861962,0.14139645,1230.1,1228.3,0.52913398]
[1760115862161,0.14139645,1230.1,1228.4,0.52913398]
[1760115862363,0.14139645,1230.1,1228.5,0.52913398]
[1760115862664,0.14139645,1230.1,1228.1,0.59355561]
[1760115862864,0.14139645,1230.1,1228.2,0.52917831]
[1760115863064,0.14139645,1230.1,1228.3,0.52917831]
[1760115863260,0.14139645,1230.1,1228.4,0.52917831]
[1760115863463,0.14139645,1230.1,1228.0,0.59355561]
[1760115863665,0.14139645,1230.1,1228.1,0.52967866]
[1760115863867,0.14139645,1230.1,1228.2,0.52967866]
[1760115864063,0.14139645,1230.1,1228.3,0.52967866]
[1760115864267,0.14139645,1230.1,1227.9,0.59355561]
[1760115864466,0.14139645,1230.1,1228.0,0.52996782]
[1760115864663,0.14139645,1230.1,1228.1,0.52996782]
[1760115864862,0.14139645,1230.1,1228.2,0.52996782]
[1760115865064,0.14139645,1230.1,1228.3,0.52996782]
[1760115865261,0.14139645,1230.1,1228.4,0.52996782]
[1760115865563,0.14139645,1230.1,1227.9,0.59355561]
[1760115865863,0.14139645,1230.1,1228.0,0.53022392]
[1760115866166,0.14139645,1230.1,1228.1,0.53022392]
[1760115866465,0.14139645,1230.1,1227.9,0.59355561]
[1760115866466,0.14139645,1230.1,1228.2,0.53022392]
[1760115866663,0.14139645,1230.1,1228.3,0.53022392]
[1760115866864,0.14139645,1230.1,1228.4,1.12377953]
[1760115867069,0.14139645,1230.1,1228.5,1.12377953]
[1760115867270,0.14139645,1230.1,1228.6,0.53022392]
[1760115867467,0.14139645,1230.1,1228.7,0.53022392]
[1760115867667,0.14139645,1230.1,1228.8,0.53022392]
[1760115867872,0.14139645,1230.1,1228.9,0.53022392]
[1760115868170,0.14139645,1230.1,1228.5,0.59355561]
[1760115868367,0.14139645,1230.1,1228.6,0.53073178]
[1760115868572,0.14139645,1230.1,1228.7,0.53073178]
[1760115868771,0.14139645,1230.1,1228.8,0.53073178]
[1760115869069,0.14139645,1230.1,1228.4,0.59355561]
[1760115869272,0.14139645,1230.1,1228.5,0.53135997]
[1760115869569,0.14139645,1230.1,1228.6,0.53135997]
[1760115869770,0.14139645,1230.1,1228.4,0.59355561]
[1760115869771,0.14139645,1230.1,1228.7,0.53135997]
[1760115869968,0.14139645,1230.1,1228.8,0.53135997]
[1760115870168,0.14139645,1230.1,1228.4,0.59355561]
[1760115870372,0.14139645,1230.1,1228.5,0.53172562]
[1760115870672,0.14139645,1230.1,1228.6,0.53172562]
[1760115870870,0.14139645,1230.1,1228.7,0.53172562]
[1760115871073,0.14139645,1230.1,1228.8,0.53164884]
[1760115871270,0.14139645,1230.1,1228.9,0.53164884]
[1760115871469,0.14139645,1230.1,1229.0,0.53164884]
[1760115871775,0.14139645,1230.1,1228.5,0.59619602]
[1760115871975,0.14139645,1230.1,1228.6,0.53192117]
[1760115872277,0.14139645,1230.1,1228.7,0.53192117]
[1760115872571,0.14139645,1230.1,1228.8,0.53192117]
[1760115872871,0.14139645,1230.1,1227.2,1.9688365]
[1760115872872,0.14139645,1230.1,1228.2,0.59619602]
[1760115873071,0.14139645,1230.1,1228.3,0.53266571]
[1760115873275,0.14139645,1230.1,1228.4,0.53266571]
[1760115873572,0.14139645,1230.1,1228.5,0.53266571]
[1760115873772,0.14139645,1230.1,1228.6,0.53266571]
[1760115873972,0.14139645,1230.1,1228.0,0.59619602]
[1760115874177,0.14139645,1230.1,1228.1,0.53347993]
[1760115874374,0.14139645,1230.1,1228.2,0.53347993]
[1760115874579,0.14139645,1230.1,1228.3,0.53347993]
[1760115874778,0.14139645,1230.1,1227.9,0.59619602]
[1760115874975,0.14139645,1230.1,1228.0,0.53399705]
[1760115875179,0.14139645,1230.1,1228.1,0.53399705]
[1760115875475,0.14139645,1230.1,1228.2,0.53399705]
[1760115875676,0.14139645,1230.1,1228.3,0.53399705]
[1760115875876,0.14139645,1230.1,1227.9,0.59619602]
[1760115876076,0.14139645,1230.1,1228.0,0.53427328]
[1760115876376,0.14139645,1230.1,1228.1,0.53427328]
[1760115876678,0.14139645,1230.1,1228.2,0.53427328]
[1760115876875,0.14139645,1230.1,1227.8,0.59619602]
[1760115877180,0.14139645,1230.1,1227.9,0.5343111]
[1760115877476,0.14139645,1230.1,1228.0,0.5343111]
[1760115877675,0.14139645,1230.1,1228.1,0.5343111]
[1760115877876,0.14139645,1230.1,1227.8,0.59619602]
[1760115877877,0.14139645,1230.1,1228.2,0.5343111]
[1760115878076,0.14139645,1230.1,1227.8,0.59619602]
[1760115878275,0.14139645,1230.1,1227.9,0.53439148]
[1760115878474,0.14139645,1230.1,1228.0,0.53439148]
[1760115878675,0.14139645,1230.1,1226.4,1.9688365]
[1760115878676,0.14139645,1230.1,1228.1,0.53439148]
[1760115878874,0.14139645,1230.1,1228.2,0.53439148]
[1760115879080,0.14139645,1230.1,1227.8,0.59619602]
[1760115879081,0.14139645,1230.1,1228.3,0.53439148]
[1760115879280,0.14139645,1230.1,1228.4,0.53237708]
[1760115879576,0.14139645,1230.1,1227.9,0.59619602]
[1760115879781,0.14139645,1230.1,1228.0,0.53244233]
[1760115879975,0.14139645,1230.1,1228.1,0.53244233]
[1760115880178,0.14139645,1230.1,1228.2,0.53244233]
[1760115880374,0.14139645,1230.1,1227.8,0.59619602]
[1760115880577,0.14139645,1230.1,1227.9,0.53276109]
[1760115880775,0.14139645,1230.1,1227.8,0.59619602]
[1760115880776,0.14139645,1230.1,1228.0,0.53276109]
[1760115881076,0.14139645,1230.1,1228.1,0.53276109]
[1760115881374,0.14139645,1230.1,1228.2,0.53276109]
[1760115881580,0.14139645,1230.1,1228.3,0.53291693]
[1760115881977,0.14139645,1230.1,1227.2,0.59619602]
[1760115882280,0.14139645,1230.1,1227.3,1.12953284]
[1760115882573,0.14139645,1230.1,1227.4,0.53333682]
[1760115882779,0.14139645,1230.1,1227.5,0.53333682]
[1760115883074,0.14139645,1230.1,1227.6,0.53333682]
[1760115883276,0.14139645,1230.1,1227.7,0.53333682]
[1760115883476,0.14139645,1230.1,1227.8,0.53333682]
[1760115883676,0.14139645,1230.1,1227.9,0.53333682]
[1760115883879,0.14139645,1230.1,1228.0,0.53333682]
[1760115884174,0.14139645,1230.1,1228.1,0.53333682]
[1760115884375,0.14139645,1230.1,1227.6,0.59619602]
[1760115884575,0.14139645,1230.1,1227.7,0.53347009]
[1760115884775,0.14139645,1230.1,1227.8,0.53347009]
[1760115884979,0.14139645,1230.1,1227.9,0.53347009]
[1760115885180,0.14139645,1230.1,1227.2,0.79140748]
[1760115885381,0.14139645,1230.1,1227.6,0.60054839]
[1760115885581,0.14139645,1230.1,1227.7,0.53350063]
[1760115885880,0.14139645,1230.1,1227.8,0.53350063]
[1760115886080,1.2076272,1230.0,1227.9,0.53350063]
[1760115886278,1.2076272,1229.8,1227.5,0.60054839]
[1760115886580,1.2076272,1229.8,1227.6,0.53384492]
[1760115886781,1.2076272,1229.8,1227.7,0.53384492]
[1760115886979,1.2076272,1229.8,1227.8,0.53384492]
[1760115887178,1.2076272,1229.8,1227.9,0.53384492]
[1760115887378,1.2076272,1229.8,1227.5,0.60054839]
[1760115887581,1.2076272,1229.8,1227.6,0.53379011]
[1760115887882,1.2076272,1229.8,1227.7,0.53379011]
[1760115888081,1.2076272,1229.8,1227.8,0.53379011]
[1760115888376,1.2076272,1230.0,1227.9,0.53379011]
[1760115888582,1.34902365,1230.1,1227.4,0.60054839]
[1760115888780,1.34902365,1230.1,1227.5,0.53363871]
[1760115889082,1.2076272,1230.0,1227.6,0.53363871]
[1760115889281,1.2076272,1230.0,1227.7,0.53363871]
[1760115889578,1.2076272,1229.6,1227.3,0.60054839]
[1760115889782,1.2076272,1229.7,1227.4,0.5338133]
[1760115889977,1.2076272,1229.7,1227.0,0.60054839]
[1760115890182,1.2076272,1229.7,1227.1,0.53408681]
[1760115890381,1.2076272,1229.7,1227.2,0.53408681]
[1760115890681,1.2076272,1229.8,1227.3,0.53408681]
[1760115890881,1.2076272,1229.5,1226.7,0.60054839]
[1760115891186,1.2076272,1229.5,1226.8,1.13454211]
[1760115891383,1.2076272,1229.6,1226.9,0.53399372]
[1760115891584,1.2076272,1229.6,1227.0,0.53399372]
[1760115891781,1.2076272,1229.6,1227.1,0.53399372]
[1760115891982,1.2076272,1229.6,1227.2,0.53399372]
[1760115892181,1.2076272,1229.6,1227.3,0.53399372]
[1760115892384,1.2076272,1230.0,1227.4,0.53352929]
[1760115892682,0.14139645,1230.1,1226.4,0.79140748]
[1760115892683,1.2076272,1229.7,1226.9,0.60054839]
[1760115892883,1.2076272,1229.7,1227.0,0.53315514]
[1760115893084,1.2076272,1229.9,1227.1,1.13370353]
[1760115893279,1.2076272,1230.0,1227.2,1.13370353]
[1760115893481,1.34902365,1230.1,1227.3,0.53315514]
[1760115893780,1.2076272,1229.9,1227.4,0.53315514]
[1760115893980,1.2076272,1229.9,1227.5,0.53315514]
[1760115894179,1.2076272,1229.9,1227.6,0.53315514]
[1760115894381,1.2076272,1230.0,1227.0,0.60054839]
[1760115894582,1.2076272,1230.0,1227.1,0.53286113]
[1760115894881,1.2076272,1229.9,1227.2,0.53286113]
[1760115895081,1.2076272,1229.9,1227.3,0.53286113]
[1760115895284,1.2076272,1229.9,1227.4,0.53286113]
[1760115895485,1.2076272,1229.9,1227.5,0.53286113]
[1760115895785,1.2076272,1229.9,1227.0,0.60054839]
[1760115896081,1.2076272,1229.9,1227.1,0.53280597]
[1760115896283,1.2076272,1229.9,1227.2,0.53280597]
[1760115896481,1.2076272,1229.9,1226.9,0.60054839]
[1760115896482,1.2076272,1229.9,1227.3,0.53280597]
[1760115896679,1.2076272,1230.0,1227.4,0.53280597]
[1760115896884,1.2076272,1230.0,1226.9,0.60054839]
[1760115897083,1.2076272,1229.9,1227.0,0.53277908]
[1760115897281,1.2076272,1229.9,1227.1,0.53277908]
[1760115897485,1.2076272,1230.0,1227.2,0.53277908]
[1760115897785,1.2076272,1230.0,1227.3,0.53277908]
[1760115897980,1.2076272,1230.0,1226.8,0.60054839]
[1760115898184,1.2076272,1229.9,1226.9,0.53243518]
[1760115898480,1.2076272,1229.9,1227.0,0.53243518]
[1760115898683,1.34902365,1230.1,1227.1,0.53243518]
[1760115898882,1.2076272,1230.0,1227.2,0.53243518]
[1760115899085,1.2076272,1230.0,1227.0,0.60054839]
[1760115899086,1.2076272,1230.0,1227.3,0.53243518]
[1760115899380,1.2076272,1230.0,1227.4,0.53243518]
[1760115899685,0.14139645,1230.1,1227.5,0.53243518]
[1760115899882,0.14139645,1230.1,1227.6,0.53243518]
[1760115900087,0.14139645,1230.1,1227.7,0.53243518]
[1760115900386,0.14139645,1230.1,1227.2,0.60054839]
[1760115900586,0.14139645,1230.1,1227.3,0.53151102]
[1760115900783,0.14139645,1230.1,1227.4,0.53151102]
[1760115900984,0.14139645,1230.1,1227.5,0.53151102]
[1760115901185,0.14139645,1230.1,1227.6,0.53151102]
[1760115901383,0.14139645,1230.1,1227.7,0.53151102]
[1760115901583,0.14139645,1230.1,1227.8,0.53151102]
[1760115901785,0.14139645,1230.1,1227.9,0.53151102]
[1760115901982,0.14139645,1230.1,1228.0,0.53151102]
[1760115902282,0.14139645,1230.1,1227.6,0.60054839]
[1760115902588,0.14139645,1230.1,1227.7,0.53052551]
[1760115902782,0.14139645,1230.1,1227.8,0.53052551]
[1760115902986,0.14139645,1230.1,1227.9,0.53052551]
[1760115903184,0.14139645,1230.1,1227.4,0.60054839]
[1760115903386,0.14139645,1230.1,1227.5,1.13092209]
[1760115903587,0.14139645,1230.1,1227.6,0.5303737]
[1760115903793,0.14139645,1230.1,1227.7,0.5303737]
[1760115904084,0.14139645,1230.1,1227.8,0.5303737]
[1760115904285,0.14139645,1230.1,1227.3,0.60054839]
[1760115904490,0.14139645,1230.1,1227.4,0.53034296]
[1760115904786,0.14139645,1230.1,1227.5,0.53034296]
[1760115904989,0.14139645,1230.1,1225.3,1.9688365]
[1760115904990,0.14139645,1230.1,1227.0,0.60054839]
[1760115905188,0.14139645,1230.1,1227.1,0.5307023]
[1760115905385,0.14139645,1230.1,1227.2,0.5307023]
[1760115905687,0.14139645,1230.1,1227.3,0.5307023]
[1760115905888,0.14139645,1230.1,1227.4,0.5307023]
[1760115906086,0.14139645,1230.1,1226.9,0.60054839]
[1760115906389,0.14139645,1230.1,1227.0,0.53092085]
[1760115906589,1.34902365,1230.1,1227.1,0.53092085]
[1760115906787,1.34902365,1230.1,1227.2,0.53092085]
[1760115906986,1.34902365,1230.1,1227.3,0.53092085]
[1760115907187,1.34902365,1230.1,1227.4,0.53092085]
[1760115907388,1.34902365,1230.1,1226.8,0.60054839]
[1760115907586,1.34902365,1230.1,1226.9,0.53096398]
[1760115907792,1.34902365,1230.1,1226.8,0.60054839]
[1760115907793,1.34902365,1230.1,1227.0,0.53096398]
[1760115907984,1.34902365,1230.1,1227.1,0.53096398]
[1760115908187,1.34902365,1230.1,1227.2,0.53096398]
[1760115908388,1.2076272,1230.0,1227.3,0.53096398]
[1760115908589,1.2076272,1229.9,1226.8,0.60054839]
[1760115908791,1.2076272,1229.8,1226.9,0.53052192]
[1760115908994,1.2076272,1229.8,1227.0,0.53052192]
[1760115909290,1.2076272,1229.9,1227.1,0.53052804]
[1760115909493,1.2076272,1229.9,1226.6,0.60054839]
[1760115909494,0.14139645,1230.1,1227.2,0.53050937]
[1760115909787,0.14139645,1230.1,1226.6,0.60054839]
[1760115909989,1.2076272,1230.0,1226.7,0.53055848]
[1760115910188,1.2076272,1230.0,1226.8,0.53055848]
[1760115910389,1.2076272,1230.0,1226.9,0.53055848]
[1760115910589,1.2076272,1230.0,1226.2,0.60054839]
[1760115910787,1.34902365,1230.1,1226.3,0.53098182]
[1760115910987,1.34902365,1230.1,1226.4,0.53098182]
[1760115911189,1.34902365,1230.1,1226.5,0.53098182]
[1760115911388,1.2076272,1230.0,1226.6,0.53098182]
[1760115911594,1.2076272,1229.9,1226.7,0.53098182]
[1760115911789,1.2076272,1229.7,1226.8,0.53098182]
[1760115911991,1.2076272,1229.8,1226.9,0.53098182]
[1760115912293,1.2076272,1229.8,1227.0,0.53098182]
[1760115912489,1.2076272,1229.8,1227.1,0.53098182]
[1760115912793,1.2076272,1229.6,1226.6,0.60054839]
[1760115912992,1.2076272,1229.6,1226.7,0.53098924]
[1760115913189,1.2076272,1229.8,1226.8,0.53098924]
[1760115913390,1.2076272,1229.8,1226.9,0.53098924]
[1760115913590,1.2076272,1229.8,1227.0,0.53098924]
[1760115913793,1.2076272,1229.8,1227.1,0.53098924]
[1760115914093,1.2076272,1230.0,1227.2,0.53076809]
[1760115914294,1.2076272,1230.0,1226.6,0.60054839]
[1760115914594,1.2076272,1230.0,1226.7,0.53090967]
[1760115914796,1.2076272,1229.8,1226.8,0.53090967]
[1760115914995,1.2076272,1229.8,1226.9,0.53090967]
[1760115915194,1.2076272,1229.8,1227.0,0.53090967]
[1760115915399,1.2076272,1229.5,1226.3,0.60054839]
[1760115915594,1.2076272,1229.5,1226.4,0.53150414]
[1760115915794,1.2076272,1229.5,1226.5,0.53150414]
[1760115916094,1.2076272,1229.6,1226.6,0.53150414]
[1760115916299,1.2076272,1229.6,1226.7,0.53150414]
[1760115916494,1.2076272,1229.6,1226.8,0.53150414]
[1760115916694,1.2076272,1229.6,1226.9,0.53150414]
[1760115916899,1.2076272,1229.6,1226.4,0.60054839]
[1760115917094,1.2076272,1229.7,1226.5,1.13218575]
[1760115917297,1.2076272,1229.8,1226.7,0.60054839]
[1760115917597,1.2076272,1229.8,1226.8,0.53163736]
[1760115917796,1.2076272,1229.9,1226.9,0.53163736]
[1760115917997,1.2076272,1229.9,1227.0,0.53163736]
[1760115918298,1.2076272,1230.0,1227.1,0.53163736]
[1760115918497,1.2076272,1230.0,1226.5,0.60054839]
[1760115918702,1.2076272,1230.0,1226.6,0.53129215]
[1760115918998,1.2076272,1230.0,1226.7,0.53129215]
[1760115919197,1.2076272,1230.0,1226.8,0.53129215]
[1760115919398,1.2076272,1230.0,1226.9,0.53129215]
[1760115919700,1.2076272,1229.8,1226.3,0.60054839]
[1760115919900,1.2076272,1229.8,1226.4,0.53148293]
[1760115920100,1.2076272,1229.9,1226.5,0.53148293]
[1760115920305,1.2076272,1229.4,1226.6,0.53148293]
[1760115920500,1.2076272,1229.3,1226.7,0.53148293]
[1760115920699,1.2076272,1229.3,1226.3,0.60054839]
[1760115921000,1.2076272,1229.3,1226.4,0.53145028]
[1760115921200,1.2076272,1229.4,1226.5,0.53145028]
[1760115921501,1.2076272,1229.5,1226.6,0.53145028]
[1760115921701,1.2076272,1229.5,1226.7,0.53145028]
[1760115921998,1.2076272,1229.5,1226.8,0.53145028]
[1760115922203,1.2076272,1229.5,1226.4,0.60054839]
[1760115922401,1.2076272,1229.5,1226.5,0.53115701]
[1760115922700,1.2076272,1229.4,1226.6,0.53115701]
[1760115922905,1.2076272,1229.5,1226.7,0.53115701]
[1760115923206,1.2076272,1229.2,1226.1,0.60054839]
[1760115923507,1.2076272,1229.1,1226.2,0.5310943]
[1760115923705,1.2076272,1229.1,1226.3,0.5310943]
[1760115923907,1.2076272,1229.3,1226.4,0.5310943]
[1760115924104,1.2076272,1229.4,1226.5,0.5310943]
[1760115924307,1.2076272,1229.4,1226.0,0.60054839]
[1760115924506,1.2076272,1229.5,1226.2,0.60054839]
[1760115924703,1.2076272,1229.5,1226.3,0.53090926]
[1760115925007,1.2076272,1229.5,1226.4,0.53090926]
[1760115925303,1.2076272,1229.6,1226.5,0.53090926]
[1760115925507,0.14139645,1230.1,1226.6,0.53090926]
[1760115925508,1.2076272,1229.7,1226.6,0.53090926]
[1760115925707,1.2076272,1229.7,1226.7,0.53090926]
[1760115925907,1.2076272,1229.7,1226.8,0.53090926]
[1760115926205,1.2076272,1229.7,1226.3,0.60054839]
[1760115926412,1.2076272,1229.7,1226.4,0.53053807]
[1760115926706,1.2076272,1229.8,1226.5,0.53053807]
[1760115926910,1.2076272,1229.8,1226.6,0.53053807]
[1760115927110,1.2076272,1229.8,1226.7,0.53053807]
[1760115927311,1.2076272,1229.7,1226.8,0.53053807]
[1760115927511,1.2076272,1229.7,1226.2,0.60054839]
[1760115927707,1.2076272,1229.7,1226.3,0.5308008]
[1760115927909,1.2076272,1229.7,1226.4,0.5308008]
[1760115928213,1.2076272,1229.7,1226.5,0.5308008]
[1760115928513,1.2076272,1229.7,1226.6,0.5308008]
[1760115928714,1.2076272,1229.7,1226.7,0.5308008]
[1760115929011,1.2076272,1229.7,1226.8,0.5308008]
[1760115929214,1.2076272,1229.7,1226.2,0.60054839]
[1760115929414,1.2076272,1229.3,1226.3,0.53130545]
[1760115929611,1.2076272,1229.2,1226.4,0.53130545]
[1760115929811,1.2076272,1229.2,1226.5,0.53130545]
[1760115930009,1.2076272,1229.2,1226.6,0.53130545]
[1760115930211,1.2076272,1229.2,1226.7,0.53130545]
[1760115930413,1.2076272,1229.1,1226.2,0.60054839]
[1760115930610,1.2076272,1229.2,1226.3,1.13243009]
[1760115930909,1.2076272,1229.2,1226.4,0.5318817]
[1760115931112,1.2076272,1229.1,1226.5,0.5318817]
[1760115931314,1.2076272,1228.9,1226.0,0.60054839]
[1760115931516,1.2076272,1229.0,1226.1,0.53262711]
[1760115931816,1.2076272,1229.0,1226.2,0.53262711]
[1760115932112,1.2076272,1229.2,1226.3,0.53262711]
[1760115932416,1.2076272,1229.1,1226.5,0.60054839]
[1760115932711,1.983107,1229.9,1226.6,0.53262711]
[1760115932712,1.2076272,1229.4,1226.6,0.53262711]
[1760115932916,1.2076272,1229.4,1226.7,0.53262711]
[1760115933112,0.14139645,1230.1,1226.8,0.53262711]
[1760115933113,1.2076272,1229.9,1226.8,0.53262711]
[1760115933316,1.2076272,1229.7,1226.9,0.53262711]
[1760115933513,1.2076272,1229.3,1226.5,0.60054839]
[1760115933717,1.2076272,1229.2,1226.6,0.53303402]
[1760115933912,1.2076272,1229.1,1226.7,0.53303402]
[1760115934216,1.2076272,1228.9,1226.3,0.60054839]
[1760115934416,1.2076272,1228.9,1226.4,0.53356693]
[1760115934612,1.2076272,1228.9,1226.2,0.60054839]
[1760115934613,1.2076272,1228.9,1226.5,0.53356693]
[1760115934912,1.2076272,1228.9,1226.6,0.53356693]
[1760115935214,1.2076272,1229.0,1226.7,0.53356693]
[1760115935417,1.2076272,1228.9,1226.2,0.60054839]
[1760115935615,1.2076272,1228.9,1226.3,0.53344357]
[1760115935818,1.2076272,1228.9,1226.4,0.53344357]
[1760115936119,1.2076272,1229.0,1226.5,0.53344357]
[1760115936318,1.2076272,1229.1,1226.6,0.53344357]
[1760115936516,1.2076272,1229.2,1226.7,0.53344357]
[1760115936816,1.2076272,1229.2,1226.8,0.53344357]
[1760115937020,1.2076272,1229.2,1226.9,0.53344357]
[1760115937315,1.2076272,1229.2,1226.4,0.60054839]
[1760115937520,1.2076272,1229.2,1226.5,0.53336359]
[1760115937716,1.2076272,1229.2,1226.4,0.60054839]
[1760115937717,1.2076272,1229.2,1226.6,0.53336359]
[1760115937920,1.2076272,1229.2,1226.7,0.53336359]
[1760115938218,1.2076272,1229.2,1226.8,0.53336359]
[1760115938416,1.2076272,1229.1,1226.3,0.60054839]
[1760115938618,1.2076272,1229.1,1226.4,0.53375287]
[1760115938917,1.2076272,1229.1,1226.3,0.60054839]
[1760115938918,1.2076272,1229.1,1226.5,0.53375287]
[1760115939116,1.2076272,1229.1,1226.6,0.53375287]
[1760115939420,1.2076272,1229.1,1226.7,0.53375287]
[1760115939619,1.2076272,1229.1,1226.8,0.53375287]
[1760115939819,1.2076272,1229.1,1226.1,0.60054839]
[1760115940019,1.2076272,1229.1,1226.2,0.53509816]
[1760115940218,1.2076272,1229.1,1226.3,0.53509816]
[1760115940420,1.2076272,1229.4,1226.4,0.53509816]
[1760115940621,1.2076272,1229.4,1226.5,0.53509816]
[1760115940917,1.2076272,1229.4,1226.6,0.53509816]
[1760115941121,1.2076272,1229.4,1226.7,0.53509816]
[1760115941320,1.2076272,1229.4,1226.8,0.53509816]
[1760115941522,1.2076272,1229.3,1226.9,0.53509816]
[1760115941719,1.2076272,1229.3,1226.2,0.60054839]
[1760115942019,1.2076272,1229.3,1226.3,0.53524156]
[1760115942220,1.2076272,1229.1,1226.4,0.53524156]
[1760115942523,1.2076272,1229.1,1226.5,0.53524156]
[1760115942724,1.2076272,1229.1,1226.6,0.53524156]
[1760115943023,1.2076272,1229.1,1226.7,0.53524156]
[1760115943224,1.2076272,1229.0,1226.2,0.60054839]
[1760115943425,1.2076272,1229.0,1226.3,0.53469458]
[1760115943621,1.2076272,1228.9,1226.4,0.53469458]
[1760115943823,1.2076272,1228.9,1226.5,0.53469458]
[1760115944023,1.2076272,1228.9,1226.6,0.53469458]
[1760115944223,1.2076272,1228.9,1226.7,0.53469458]
[1760115944424,1.2076272,1228.9,1226.2,0.60054839]
[1760115944628,1.2076272,1229.0,1226.3,0.53488181]
[1760115944927,1.2076272,1229.0,1226.4,0.53488181]
[1760115945127,1.2076272,1228.9,1226.5,0.53488181]
[1760115945426,1.2076272,1228.9,1226.6,0.53488181]
[1760115945625,1.2076272,1228.9,1226.7,0.53488181]
[1760115945828,1.2076272,1228.9,1226.2,0.60054839]
[1760115946028,1.2076272,1229.0,1226.4,0.60054839]
[1760115946327,1.2076272,1229.1,1226.7,0.60054839]
[1760115946522,1.2076272,1229.1,1226.8,0.53538792]
[1760115946726,0.14139645,1230.1,1226.8,0.53538792]
[1760115946727,1.2076272,1229.3,1226.9,0.53538792]
[1760115946928,1.2076272,1229.2,1227.0,1.13593631]
[1760115947124,1.2076272,1229.7,1227.1,0.53538792]
[1760115947326,1.2076272,1229.7,1227.2,0.53538792]
[1760115947525,1.2076272,1229.7,1227.3,0.53538792]
[1760115947731,1.2076272,1229.7,1227.4,0.53538792]
[1760115948026,1.2076272,1229.8,1227.5,0.53538792]
[1760115948226,1.2076272,1229.3,1226.7,0.60054839]
[1760115948424,1.2076272,1229.2,1226.8,0.53567948]
[1760115948627,1.2076272,1229.2,1226.9,0.53567948]
[1760115948930,1.2076272,1229.2,1227.0,0.53567948]
[1760115949127,1.2076272,1229.2,1227.1,0.53567948]
[1760115949332,1.2076272,1229.1,1227.2,0.53567948]
[1760115949530,1.2076272,1229.1,1226.7,0.60054839]
[1760115949728,1.2076272,1229.1,1226.8,0.53597071]
[1760115949930,1.2076272,1229.1,1226.9,0.53597071]
[1760115950126,0.14139645,1230.1,1226.4,0.79140748]
[1760115950127,1.2076272,1229.3,1227.0,0.53597071]
[1760115950330,1.2076272,1229.3,1227.1,0.53597071]
[1760115950527,1.2076272,1229.3,1226.4,0.60054839]
[1760115950830,1.2076272,1229.3,1226.5,0.53619915]
[1760115951027,1.2076272,1229.3,1226.6,0.53619915]
[1760115951229,1.2076272,1229.3,1226.7,0.53619915]
[1760115951531,1.2076272,1229.1,1226.8,0.53619915]
[1760115951831,1.2076272,1229.1,1226.9,0.53619915]
[1760115952031,1.2076272,1229.1,1226.5,0.60054839]
[1760115952232,1.2076272,1228.8,1226.6,0.53637266]
[1760115952429,1.2076272,1228.8,1226.7,0.53637266]
[1760115952734,1.2076272,1228.7,1226.8,0.53637266]
[1760115952933,1.2076272,1228.7,1226.4,0.60054839]
[1760115953132,1.2076272,1228.6,1226.5,0.53670014]
[1760115953333,0.14139645,1230.1,1225.2,0.14176625]
[1760115953334,1.2076272,1228.8,1226.6,0.53670014]
[1760115953528,1.2076272,1228.8,1225.9,0.60054839]
[1760115953834,1.2076272,1228.8,1226.0,0.53667754]
[1760115954032,1.2076272,1228.7,1226.1,0.53667754]
[1760115954232,1.2076272,1228.7,1226.2,0.53667754]
[1760115954433,1.2076272,1228.7,1226.3,0.53667754]
[1760115954632,1.2076272,1228.7,1225.9,0.60054839]
[1760115954633,1.2076272,1228.8,1226.4,0.53667754]
[1760115954833,2.12450345,1230.1,1226.4,0.53667754]
[1760115954834,1.2076272,1229.6,1226.5,0.53667754]
[1760115955033,1.2076272,1229.6,1226.6,0.53667754]
[1760115955234,1.2076272,1229.2,1226.7,0.53667754]
[1760115955534,1.2076272,1228.9,1226.8,0.53667754]
[1760115955731,0.14139645,1230.1,1226.8,0.53667754]
[1760115955732,1.2076272,1229.1,1226.9,0.53667754]
[1760115955929,1.2076272,1229.1,1227.0,0.53667754]
[1760115956130,1.2076272,1229.1,1227.1,0.53667754]
[1760115956329,1.2076272,1229.1,1227.2,0.53667754]
[1760115956537,1.2076272,1229.1,1226.8,0.60054839]
[1760115956734,1.2076272,1229.1,1226.9,0.53557035]
[1760115957031,1.2076272,1229.2,1227.0,0.53557035]
[1760115957235,1.2076272,1229.2,1227.1,0.53557035]
[1760115957537,1.2076272,1229.2,1227.2,0.53557035]
[1760115957736,1.2076272,1229.2,1226.8,0.60054839]
[1760115957935,1.2076272,1229.2,1226.9,0.53523413]
[1760115958134,1.2076272,1229.2,1227.0,0.53523413]
[1760115958336,1.2076272,1229.2,1227.1,0.53523413]
[1760115958536,1.2076272,1229.2,1227.2,0.53523413]
[1760115958832,1.2076272,1229.3,1227.3,0.53523413]
[1760115959032,1.2076272,1229.2,1226.8,0.60054839]
[1760115959236,1.2076272,1229.3,1226.9,0.53535909]
[1760115959433,1.2076272,1229.2,1227.0,0.53535909]
[1760115959734,1.2076272,1229.3,1227.1,0.53535909]
[1760115959932,1.2076272,1229.3,1227.2,0.53535909]
[1760115960137,1.2076272,1229.3,1227.3,0.53535909]
[1760115960439,1.2076272,1229.3,1227.4,0.53535909]
[1760115960640,1.2076272,1229.3,1226.9,0.60054839]
[1760115960939,1.2076272,1229.3,1227.0,0.535118]
[1760115961139,1.2076272,1229.3,1227.1,0.535118]
[1760115961338,1.2076272,1229.3,1227.2,0.535118]
[1760115961537,1.2076272,1229.3,1227.3,0.535118]
[1760115961837,1.2076272,1229.3,1227.4,0.535118]
[1760115962036,1.2076272,1229.3,1226.9,0.60054839]
[1760115962235,1.2076272,1229.2,1227.0,0.53589607]
[1760115962438,1.2076272,1229.1,1227.1,0.53589607]
[1760115962640,1.2076272,1229.4,1227.2,1.13644446]
[1760115962841,1.2076272,1229.4,1227.3,1.13644446]
[1760115963039,1.2076272,1229.4,1227.4,0.53589607]
[1760115963237,1.2076272,1229.4,1227.5,0.53589607]
[1760115963441,1.2076272,1229.4,1227.6,0.53589607]
[1760115963647,1.2076272,1229.4,1227.7,0.53589607]
[1760115963842,1.2076272,1229.6,1227.8,0.53589607]
[1760115964044,1.2076272,1229.6,1227.3,0.60054839]
[1760115964244,1.2076272,1229.6,1227.4,0.53609869]
[1760115964441,1.2076272,1229.6,1227.5,0.53609869]
[1760115964739,1.2076272,1229.6,1227.6,0.53609869]
[1760115964945,1.2076272,1229.6,1227.7,0.53609869]
[1760115965147,1.2076272,1229.6,1227.8,0.53609869]
[1760115965345,1.2076272,1229.7,1227.2,0.60054839]
[1760115965545,1.2076272,1229.5,1227.3,0.53595521]
[1760115965845,1.2076272,1229.5,1227.4,0.53595521]
[1760115966045,1.2076272,1229.4,1227.5,0.53595521]